[Event "GrandPrix_30.05"]
[Site "Chess.com"]
[Date "2020.05.30"]
[Round "7"]
[White "EvgenyPigusov"]
[Black "VerdeNotte"]
[Result "1-0"]
[WhiteElo "2343"]
[BlackElo "2540"]
[TimeControl "600+2"]
[EndTime "11:26:57 PDT"]
[Termination "EvgenyPigusov won by resignation"]

1. Nf3 {[%clk 0:10:01.9]} 1... g6 {[%clk 0:10:00.3]} 2. c4 {[%clk 0:09:57]} 2...
Bg7 {[%clk 0:10:01.2]} 3. d4 {[%clk 0:09:58.2]} 3... Nf6 {[%clk 0:10:02.2]} 4.
g3 {[%clk 0:09:58.4]} 4... O-O {[%clk 0:10:01.6]} 5. Bg2 {[%clk 0:09:59]} 5...
d6 {[%clk 0:10:03.2]} 6. Nc3 {[%clk 0:09:59]} 6... Nc6 {[%clk 0:10:04.3]} 7. O-O
{[%clk 0:09:59.3]} 7... a6 {[%clk 0:10:03.7]} 8. e3 {[%clk 0:09:54.7]} 8... Rb8
{[%clk 0:10:03.6]} 9. Qe2 {[%clk 0:09:54.2]} 9... e6 {[%clk 0:09:58.6]} 10. Rd1
{[%clk 0:09:46.7]} 10... Ne7 {[%clk 0:09:48.5]} 11. e4 {[%clk 0:09:33.6]} 11...
Nd7 {[%clk 0:09:04.2]} 12. e5 {[%clk 0:09:09.1]} 12... dxe5 {[%clk 0:08:53.6]}
13. dxe5 {[%clk 0:08:04.6]} 13... b6 {[%clk 0:08:49.1]} 14. Ne4 {[%clk
0:07:46.9]} 14... Qe8 {[%clk 0:08:31.2]} 15. Bg5 {[%clk 0:06:59.6]} 15... h6
{[%clk 0:08:22.2]} 16. Bxh6 {[%clk 0:06:26.7]} 16... f5 {[%clk 0:07:13.5]} 17.
Bxg7 {[%clk 0:05:25.4]} 17... fxe4 {[%clk 0:07:05.8]} 18. Ng5 {[%clk 0:05:17.7]}
18... Kxg7 {[%clk 0:06:51.4]} 19. Nxe6+ {[%clk 0:05:17.6]} 19... Kg8 {[%clk
0:06:43.8]} 20. Nxc7 {[%clk 0:05:17]} 20... Qd8 {[%clk 0:06:29.7]} 21. Ne6
{[%clk 0:05:13.8]} 21... Qe8 {[%clk 0:06:31.1]} 22. Nxf8 {[%clk 0:05:09.2]}
22... Nxf8 {[%clk 0:06:32]} 23. Bxe4 {[%clk 0:05:04.3]} 23... Be6 {[%clk
0:05:59]} 24. b3 {[%clk 0:04:43.8]} 24... Qf7 {[%clk 0:05:54.2]} 25. Rac1 {[%clk
0:04:28.2]} 25... Nd7 {[%clk 0:05:48.5]} 26. f4 {[%clk 0:04:21.2]} 26... Nc5
{[%clk 0:05:49.5]} 27. Bf3 {[%clk 0:04:18.7]} 27... a5 {[%clk 0:05:47.2]} 28.
Rd2 {[%clk 0:04:14.4]} 28... Kg7 {[%clk 0:05:32.9]} 29. Rcd1 {[%clk 0:04:14.4]}
29... a4 {[%clk 0:05:32.1]} 30. Qe3 {[%clk 0:04:04.9]} 30... Nf5 {[%clk
0:05:07.6]} 31. Qc3 {[%clk 0:04:05.4]} 31... axb3 {[%clk 0:04:58.4]} 32. axb3
{[%clk 0:04:05.7]} 32... b5 {[%clk 0:04:59.8]} 33. cxb5 {[%clk 0:03:29.7]} 33...
Nxb3 {[%clk 0:04:41.1]} 34. Rd7 {[%clk 0:03:00.8]} 34... Ne7 {[%clk 0:04:32.6]}
35. Rc7 {[%clk 0:02:37.4]} 35... Rxb5 {[%clk 0:04:19.4]} 36. Rdd7 {[%clk
0:02:36.6]} 36... Bxd7 {[%clk 0:04:11.7]} 37. e6+ {[%clk 0:02:37.3]} 37... Qf6
{[%clk 0:04:12.7]} 38. Qxf6+ {[%clk 0:02:34.8]} 38... Kxf6 {[%clk 0:04:13.8]}
39. exd7 {[%clk 0:02:35.8]} 39... Rb8 {[%clk 0:04:11.8]} 40. Rb7 {[%clk
0:02:35.4]} 40... Rd8 {[%clk 0:04:07.6]} 41. Rb6+ {[%clk 0:02:25.3]} 41... Kg7
{[%clk 0:04:06.1]} 42. Rxb3 {[%clk 0:02:25.6]} 42... Rxd7 {[%clk 0:04:07.7]} 43.
Rb7 {[%clk 0:02:24.9]} 43... Rxb7 {[%clk 0:04:05.4]} 44. Bxb7 {[%clk 0:02:24.8]}
44... Kf6 {[%clk 0:04:05.4]} 45. h4 {[%clk 0:02:21.3]} 45... Nf5 {[%clk
0:04:03.6]} 46. Kg2 {[%clk 0:02:21.2]} 46... Nd6 {[%clk 0:04:00.7]} 47. Ba6
{[%clk 0:02:18.8]} 47... Nf5 {[%clk 0:03:56.5]} 48. Bd3 {[%clk 0:02:19]} 48...
Nd4 {[%clk 0:03:42.6]} 49. Kf2 {[%clk 0:02:18.9]} 49... Ne6 {[%clk 0:03:42.1]}
50. Ke3 {[%clk 0:02:19.3]} 50... Ng7 {[%clk 0:03:43.4]} 51. g4 {[%clk
0:02:19.9]} 51... Ne6 {[%clk 0:03:44.4]} 52. Bc4 {[%clk 0:02:19.2]} 52... Nc5
{[%clk 0:03:34.6]} 53. Kd4 {[%clk 0:02:19.3]} 53... Nd7 {[%clk 0:03:32.9]} 54.
Bd3 {[%clk 0:02:20]} 54... Nb6 {[%clk 0:03:20.3]} 55. Be4 {[%clk 0:02:14.9]}
55... Nc8 {[%clk 0:03:13.9]} 56. Kc5 {[%clk 0:02:13.1]} 56... Ne7 {[%clk
0:03:11.7]} 57. g5+ {[%clk 0:02:12.6]} 57... Kf7 {[%clk 0:03:08.8]} 58. Kd6
{[%clk 0:02:06]} 58... Nc8+ {[%clk 0:03:09.4]} 59. Kc7 {[%clk 0:02:03.9]} 59...
Ne7 {[%clk 0:03:08]} 60. Kd7 {[%clk 0:02:04]} 60... Kf8 {[%clk 0:03:06.2]} 61.
Ke6 {[%clk 0:02:03.3]} 61... Ke8 {[%clk 0:03:07]} 62. Kf6 {[%clk 0:02:03.1]}
62... Kf8 {[%clk 0:03:08.5]} 63. Bxg6 {[%clk 0:02:00.4]} 63... Nd5+ {[%clk
0:03:09.9]} 64. Ke5 {[%clk 0:02:01.2]} 64... Ne3 {[%clk 0:03:11.4]} 65. Bd3
{[%clk 0:01:49.8]} 65... Kg7 {[%clk 0:03:09.1]} 66. h5 {[%clk 0:01:44.8]} 66...
Ng4+ {[%clk 0:03:07.9]} 67. Kf5 {[%clk 0:01:43.4]} 67... Ne3+ {[%clk 0:03:07.8]}
68. Ke4 {[%clk 0:01:43.1]} 68... Nd1 {[%clk 0:03:01.8]} 69. h6+ {[%clk
0:01:42.8]} 69... Kf7 {[%clk 0:03:01]} 70. f5 {[%clk 0:01:37]} 70... Nf2+ {[%clk
0:02:58.1]} 71. Kd4 {[%clk 0:01:34.9]} 71... Nh3 {[%clk 0:02:57.5]} 72. g6+
{[%clk 0:01:33]} 72... Kf6 {[%clk 0:02:53.4]} 73. g7 {[%clk 0:01:31.5]} 1-0

[Event "GrandPrix_30.05"]
[Site "Chess.com"]
[Date "2020.05.30"]
[Round "7"]
[White "SantoBlue"]
[Black "VMikhalevski"]
[Result "0-1"]
[WhiteElo "2553"]
[BlackElo "2697"]
[TimeControl "600+2"]
[EndTime "11:27:06 PDT"]
[Termination "VMikhalevski won by resignation"]

1. Nf3 {[%clk 0:10:01.9]} 1... Nf6 {[%clk 0:09:55.3]} 2. g3 {[%clk 0:09:58.6]}
2... g6 {[%clk 0:09:55.5]} 3. b3 {[%clk 0:09:56.3]} 3... Bg7 {[%clk 0:09:52.5]}
4. Bb2 {[%clk 0:09:57.2]} 4... c5 {[%clk 0:09:43.1]} 5. Bg2 {[%clk 0:09:36.4]}
5... d6 {[%clk 0:09:35.9]} 6. c4 {[%clk 0:09:29.9]} 6... e5 {[%clk 0:09:25.4]}
7. d3 {[%clk 0:09:29.6]} 7... Nc6 {[%clk 0:09:24.7]} 8. Nc3 {[%clk 0:09:25]}
8... O-O {[%clk 0:09:23.6]} 9. Nd2 {[%clk 0:09:16.2]} 9... Be6 {[%clk
0:09:16.5]} 10. Nde4 {[%clk 0:08:57.9]} 10... Nh5 {[%clk 0:08:49.9]} 11. h4
{[%clk 0:06:38]} 11... h6 {[%clk 0:08:37.3]} 12. Nb5 {[%clk 0:06:36.7]} 12... f5
{[%clk 0:08:27.8]} 13. Nbxd6 {[%clk 0:05:50.6]} 13... fxe4 {[%clk 0:08:20.2]}
14. Nxe4 {[%clk 0:05:49.9]} 14... Qe7 {[%clk 0:08:00.4]} 15. e3 {[%clk
0:05:42.8]} 15... Rad8 {[%clk 0:07:57.1]} 16. a3 {[%clk 0:05:28.2]} 16... Nf6
{[%clk 0:07:35.4]} 17. Qe2 {[%clk 0:05:23.6]} 17... Bg4 {[%clk 0:07:14.9]} 18.
f3 {[%clk 0:03:43.2]} 18... Nxe4 {[%clk 0:06:57.2]} 19. dxe4 {[%clk 0:03:42.7]}
19... Be6 {[%clk 0:06:57.7]} 20. O-O {[%clk 0:03:23]} 20... Na5 {[%clk
0:06:40.3]} 21. Qc2 {[%clk 0:03:17.7]} 21... b5 {[%clk 0:06:40.3]} 22. Bc3
{[%clk 0:03:18.6]} 22... Qc7 {[%clk 0:06:35.4]} 23. f4 {[%clk 0:03:15.9]} 23...
bxc4 {[%clk 0:06:27.2]} 24. b4 {[%clk 0:03:09.9]} 24... Nb3 {[%clk 0:06:21.5]}
25. Rae1 {[%clk 0:03:08.9]} 25... exf4 {[%clk 0:06:09.6]} 26. gxf4 {[%clk
0:03:07]} 26... Bxc3 {[%clk 0:06:04.9]} 27. Qxc3 {[%clk 0:03:06.9]} 27... Rd3
{[%clk 0:06:05.4]} 28. Qc2 {[%clk 0:02:59.8]} 28... Rfd8 {[%clk 0:05:53.1]} 29.
e5 {[%clk 0:02:57.8]} 29... Qf7 {[%clk 0:05:24.9]} 30. Qf2 {[%clk 0:02:34]}
30... Nd2 {[%clk 0:05:20.3]} 31. h5 {[%clk 0:02:00.6]} 31... Nxf1 {[%clk
0:05:17.2]} 32. Rxf1 {[%clk 0:01:55.4]} 32... Bf5 {[%clk 0:03:54.8]} 33. e4
{[%clk 0:01:50.8]} 33... Rd2 {[%clk 0:03:54]} 34. hxg6 {[%clk 0:01:35.8]} 34...
Bxg6 {[%clk 0:03:34.5]} 35. Qg3 {[%clk 0:01:32.3]} 35... R8d3 {[%clk 0:03:23.3]}
36. Qg4 {[%clk 0:01:32.8]} 36... Kh7 {[%clk 0:03:23.3]} 37. e6 {[%clk
0:01:22.9]} 37... Qf6 {[%clk 0:03:11.1]} 38. e5 {[%clk 0:00:05.5]} 38... Rxg2+
{[%clk 0:02:40.5]} 39. Qxg2 {[%clk 0:00:05.4]} 39... Qxe6 {[%clk 0:02:36.6]} 40.
bxc5 {[%clk 0:00:05.3]} 40... Bf5 {[%clk 0:02:26]} 41. Qb7+ {[%clk 0:00:03.2]}
41... Rd7 {[%clk 0:02:25.6]} 42. Qf3 {[%clk 0:00:04.5]} 42... Rg7+ {[%clk
0:02:23.5]} 43. Kf2 {[%clk 0:00:04.9]} 43... Qe7 {[%clk 0:02:19.6]} 44. c6
{[%clk 0:00:03.5]} 44... Qh4+ {[%clk 0:02:16.3]} 45. Ke3 {[%clk 0:00:02.4]}
45... Rg3 {[%clk 0:02:16.2]} 0-1

[Event "GrandPrix_30.05"]
[Site "Chess.com"]
[Date "2020.05.30"]
[Round "7"]
[White "Bacyanide"]
[Black "mishanick"]
[Result "0-1"]
[WhiteElo "2500"]
[BlackElo "2879"]
[TimeControl "600+2"]
[EndTime "11:27:06 PDT"]
[Termination "mishanick won on time"]

1. d4 {[%clk 0:10:01.9]} 1... Nf6 {[%clk 0:10:00.8]} 2. Nf3 {[%clk 0:10:02.3]}
2... d5 {[%clk 0:10:01.8]} 3. Bf4 {[%clk 0:10:02.5]} 3... c5 {[%clk 0:10:02.9]}
4. e3 {[%clk 0:10:02.5]} 4... Nc6 {[%clk 0:10:04.4]} 5. Nbd2 {[%clk 0:10:03.2]}
5... Qb6 {[%clk 0:10:05.8]} 6. dxc5 {[%clk 0:10:04]} 6... Qxb2 {[%clk
0:10:07.3]} 7. Rb1 {[%clk 0:10:04.1]} 7... Qa3 {[%clk 0:10:08.9]} 8. Bb5 {[%clk
0:10:02.3]} 8... g6 {[%clk 0:10:10.2]} 9. O-O {[%clk 0:09:32.9]} 9... Bg7 {[%clk
0:10:10.8]} 10. Nb3 {[%clk 0:08:57.9]} 10... O-O {[%clk 0:09:58.2]} 11. Ne5
{[%clk 0:08:54.3]} 11... Na5 {[%clk 0:07:11.9]} 12. e4 {[%clk 0:06:18.5]} 12...
Nxb3 {[%clk 0:06:39.9]} 13. Rxb3 {[%clk 0:06:06.9]} 13... Qxc5 {[%clk
0:06:39.3]} 14. Nd3 {[%clk 0:05:23.2]} 14... Qb6 {[%clk 0:06:37]} 15. e5 {[%clk
0:03:00.2]} 15... Ne4 {[%clk 0:06:37.5]} 16. c4 {[%clk 0:01:59.7]} 16... a6
{[%clk 0:06:13.7]} 17. Bd7 {[%clk 0:01:41.6]} 17... Qd4 {[%clk 0:06:07.1]} 18.
Bxc8 {[%clk 0:01:32.7]} 18... dxc4 {[%clk 0:05:27.4]} 19. Bxb7 {[%clk
0:01:26.2]} 19... cxb3 {[%clk 0:04:04.2]} 20. Bxa8 {[%clk 0:01:26.1]} 20... Nc3
{[%clk 0:03:50.3]} 21. Be3 {[%clk 0:00:47.7]} 21... Qxe3 {[%clk 0:03:01]} 22.
fxe3 {[%clk 0:00:40.8]} 22... Nxd1 {[%clk 0:03:02.4]} 23. Rxd1 {[%clk
0:00:40.3]} 23... Rxa8 {[%clk 0:03:03.6]} 24. axb3 {[%clk 0:00:41.1]} 24... Rd8
{[%clk 0:02:59.7]} 25. e6 {[%clk 0:00:36.8]} 25... f5 {[%clk 0:02:55.2]} 26. Kf2
{[%clk 0:00:33.5]} 26... Rd6 {[%clk 0:02:50.4]} 27. Ke2 {[%clk 0:00:23.5]} 27...
Rxe6 {[%clk 0:02:49.6]} 28. Nc5 {[%clk 0:00:15.9]} 28... Rc6 {[%clk 0:02:47.9]}
29. Rd5 {[%clk 0:00:09.9]} 29... Kf7 {[%clk 0:02:42.1]} 30. Kd3 {[%clk
0:00:04.4]} 30... e6 {[%clk 0:02:21.7]} 31. Rd7+ {[%clk 0:00:05]} 31... Kf6
{[%clk 0:02:22.9]} 32. b4 {[%clk 0:00:05.5]} 32... Bf8 {[%clk 0:02:22]} 33. Rxh7
{[%clk 0:00:03.9]} 33... Bxc5 {[%clk 0:02:20.7]} 34. bxc5 {[%clk 0:00:05.8]}
34... Rxc5 {[%clk 0:02:22.6]} 35. Ra7 {[%clk 0:00:07.4]} 35... Ra5 {[%clk
0:02:23.8]} 36. h4 {[%clk 0:00:06.2]} 36... Ra2 {[%clk 0:02:24.8]} 37. g3 {[%clk
0:00:07.2]} 37... Rg2 {[%clk 0:02:24.2]} 38. Rxa6 {[%clk 0:00:04.7]} 38... Rxg3
{[%clk 0:02:25.8]} 39. Ra4 {[%clk 0:00:05.6]} 39... Rg4 {[%clk 0:01:58.1]} 40.
Rxg4 {[%clk 0:00:04.7]} 40... fxg4 {[%clk 0:02:00]} 41. Ke2 {[%clk 0:00:03.2]}
41... Kg7 {[%clk 0:01:54.8]} 0-1

[Event "GrandPrix_30.05"]
[Site "Chess.com"]
[Date "2020.05.30"]
[Round "7"]
[White "DanielDardha2005"]
[Black "bratkoo"]
[Result "1/2-1/2"]
[WhiteElo "2318"]
[BlackElo "2219"]
[TimeControl "600+2"]
[EndTime "11:27:06 PDT"]
[Termination "Game drawn by agreement"]

1. Nf3 {[%clk 0:10:01.8]} 1... d5 {[%clk 0:09:54.9]} 2. c4 {[%clk 0:10:02.3]}
2... e6 {[%clk 0:09:55]} 3. g3 {[%clk 0:10:02.8]} 3... Nf6 {[%clk 0:09:54.7]} 4.
Bg2 {[%clk 0:10:03.7]} 4... d4 {[%clk 0:09:55.5]} 5. O-O {[%clk 0:10:02.3]} 5...
c5 {[%clk 0:09:56.2]} 6. e3 {[%clk 0:09:58.9]} 6... Nc6 {[%clk 0:09:57.3]} 7.
exd4 {[%clk 0:09:59]} 7... cxd4 {[%clk 0:09:57.9]} 8. d3 {[%clk 0:10:00.4]} 8...
Bd6 {[%clk 0:09:58.6]} 9. Bg5 {[%clk 0:09:56.2]} 9... O-O {[%clk 0:09:59.1]} 10.
a3 {[%clk 0:09:51.4]} 10... a5 {[%clk 0:09:59.2]} 11. Nbd2 {[%clk 0:09:52.8]}
11... e5 {[%clk 0:09:53.7]} 12. Ne4 {[%clk 0:09:39.4]} 12... Be7 {[%clk
0:09:53.7]} 13. Bxf6 {[%clk 0:09:40.3]} 13... Bxf6 {[%clk 0:09:54.5]} 14. c5
{[%clk 0:09:30.5]} 14... Be7 {[%clk 0:09:50.7]} 15. Qc2 {[%clk 0:08:41.3]} 15...
f5 {[%clk 0:09:42.8]} 16. Ned2 {[%clk 0:08:40.9]} 16... Be6 {[%clk 0:09:43.8]}
17. Rfe1 {[%clk 0:07:55.2]} 17... Bf6 {[%clk 0:09:43.8]} 18. Nc4 {[%clk
0:07:45.6]} 18... Qc7 {[%clk 0:09:06.3]} 19. Rab1 {[%clk 0:06:58]} 19... Rad8
{[%clk 0:08:26.8]} 20. b4 {[%clk 0:06:35.4]} 20... axb4 {[%clk 0:08:28.7]} 21.
axb4 {[%clk 0:06:36.6]} 21... e4 {[%clk 0:08:29.9]} 22. dxe4 {[%clk 0:05:43.6]}
22... fxe4 {[%clk 0:08:30.5]} 23. Rxe4 {[%clk 0:05:15.2]} 23... Bf5 {[%clk
0:08:31]} 24. Nd6 {[%clk 0:04:40.9]} 24... Bxe4 {[%clk 0:08:06.7]} 25. Qxe4
{[%clk 0:04:42.8]} 25... Kh8 {[%clk 0:08:07.9]} 26. b5 {[%clk 0:04:18.9]} 26...
Na5 {[%clk 0:08:02.2]} 27. Ne5 {[%clk 0:03:27.2]} 27... Bxe5 {[%clk 0:07:43]}
28. Qxe5 {[%clk 0:03:25]} 28... b6 {[%clk 0:07:44.3]} 29. Qh5 {[%clk 0:02:59.9]}
29... Qxc5 {[%clk 0:06:35.6]} 30. Nf7+ {[%clk 0:02:57.1]} 30... Kg8 {[%clk
0:06:37.1]} 31. Qxc5 {[%clk 0:02:32]} 31... bxc5 {[%clk 0:06:39]} 32. Nxd8
{[%clk 0:02:33.4]} 32... Rxd8 {[%clk 0:06:40.1]} 33. b6 {[%clk 0:02:21.4]} 33...
c4 {[%clk 0:06:36.9]} 34. Rb5 {[%clk 0:02:03.7]} 34... d3 {[%clk 0:06:19.9]} 35.
Rxa5 {[%clk 0:00:58.7]} 35... d2 {[%clk 0:05:59.5]} 36. Bf3 {[%clk 0:00:55.6]}
36... d1=Q+ {[%clk 0:05:59.9]} 37. Bxd1 {[%clk 0:00:56.7]} 37... Rxd1+ {[%clk
0:06:01]} 38. Kg2 {[%clk 0:00:58.3]} 38... Rb1 {[%clk 0:06:02.2]} 39. Rc5 {[%clk
0:00:54.4]} 39... Rxb6 {[%clk 0:06:02.3]} 40. Rxc4 {[%clk 0:00:55.5]} 40... h5
{[%clk 0:06:00.7]} 41. h4 {[%clk 0:00:48.3]} 41... g6 {[%clk 0:06:01.5]} 42. Kf3
{[%clk 0:00:48.9]} 42... Kf7 {[%clk 0:06:02.2]} 43. Ke3 {[%clk 0:00:49.2]} 43...
Rb3+ {[%clk 0:06:02.8]} 44. Kf4 {[%clk 0:00:49.7]} 44... Rb5 {[%clk 0:06:01.6]}
45. Rc7+ {[%clk 0:00:47.7]} 45... Kf6 {[%clk 0:06:02.7]} 46. Rc6+ {[%clk
0:00:49.6]} 46... Kf7 {[%clk 0:06:04]} 47. Ke4 {[%clk 0:00:48.8]} 47... Rb4+
{[%clk 0:06:02.3]} 48. Kd3 {[%clk 0:00:34.4]} 48... Rb2 {[%clk 0:05:59.4]} 49.
Rc2 {[%clk 0:00:34.3]} 49... Rb4 {[%clk 0:05:57.9]} 50. Ke3 {[%clk 0:00:34.7]}
50... Ra4 {[%clk 0:05:58]} 51. Rd2 {[%clk 0:00:36.2]} 51... Rb4 {[%clk
0:05:59.1]} 52. Rd4 {[%clk 0:00:37.4]} 52... Rb2 {[%clk 0:05:59.1]} 53. Rd6
{[%clk 0:00:36.5]} 53... Rb4 {[%clk 0:05:59.1]} 54. Kf3 {[%clk 0:00:34.3]} 54...
Ra4 {[%clk 0:05:59.5]} 55. Ke2 {[%clk 0:00:33.7]} 55... Ra2+ {[%clk 0:05:59.2]}
56. Ke3 {[%clk 0:00:35]} 56... Ra3+ {[%clk 0:06:00.4]} 57. Ke4 {[%clk
0:00:35.4]} 57... Ra2 {[%clk 0:05:57.7]} 58. f3 {[%clk 0:00:31.2]} 58... Ra5
{[%clk 0:05:54.4]} 59. Rd5 {[%clk 0:00:30]} 59... Ra6 {[%clk 0:05:53.9]} 60. Kf4
{[%clk 0:00:30.5]} 60... Kf6 {[%clk 0:05:50.7]} 61. Rd4 {[%clk 0:00:30.2]} 61...
Rb6 {[%clk 0:05:50.3]} 62. Ra4 {[%clk 0:00:30.7]} 62... Rc6 {[%clk 0:05:50.9]}
63. Rd4 {[%clk 0:00:29.9]} 63... Rb6 {[%clk 0:05:50.2]} 64. Ke4 {[%clk
0:00:31.1]} 64... Re6+ {[%clk 0:05:50.6]} 65. Kd5 {[%clk 0:00:28.7]} 65... Re5+
{[%clk 0:05:51.7]} 66. Kd6 {[%clk 0:00:28.6]} 66... Re6+ {[%clk 0:05:52.8]} 67.
Kc5 {[%clk 0:00:29.4]} 67... Re5+ {[%clk 0:05:52.5]} 68. Kc6 {[%clk 0:00:22.8]}
68... g5 {[%clk 0:05:29.2]} 69. Kd6 {[%clk 0:00:09.3]} 69... Re6+ {[%clk
0:05:21.3]} 70. Kd5 {[%clk 0:00:09.9]} 70... Re5+ {[%clk 0:05:21.6]} 71. Kc4
{[%clk 0:00:11.2]} 71... gxh4 {[%clk 0:05:20.5]} 72. Rxh4 {[%clk 0:00:11.1]}
72... Re3 {[%clk 0:05:17.7]} 73. Rf4+ {[%clk 0:00:11.9]} 73... Kg5 {[%clk
0:05:15.3]} 74. Kd4 {[%clk 0:00:12.5]} 74... Ra3 {[%clk 0:05:15.3]} 75. Rf8
{[%clk 0:00:10.3]} 75... h4 {[%clk 0:05:03.7]} 76. Rg8+ {[%clk 0:00:10.3]} 76...
Kh6 {[%clk 0:05:04.7]} 77. Rh8+ {[%clk 0:00:08]} 77... Kg7 {[%clk 0:05:05.7]}
78. Rxh4 {[%clk 0:00:09.3]} 78... Rxf3 {[%clk 0:05:05.8]} 79. Rg4+ {[%clk
0:00:10.8]} 79... Kh7 {[%clk 0:05:04.7]} 80. Ke4 {[%clk 0:00:12.7]} 80... Ra3
{[%clk 0:05:04.6]} 81. Rg5 {[%clk 0:00:10.2]} 81... Ra4+ {[%clk 0:05:05.5]} 82.
Kf3 {[%clk 0:00:11.2]} 82... Kh6 {[%clk 0:05:05.1]} 83. Rc5 {[%clk 0:00:12.1]}
83... Ra6 {[%clk 0:05:04.9]} 84. Kg4 {[%clk 0:00:12.8]} 84... Kg6 {[%clk
0:05:06.1]} 85. Kh4 {[%clk 0:00:13.6]} 85... Rb6 {[%clk 0:05:06.2]} 86. g4
{[%clk 0:00:14.9]} 86... Ra6 {[%clk 0:05:07.3]} 87. Rb5 {[%clk 0:00:15.4]} 87...
Rc6 {[%clk 0:05:07.8]} 88. Rd5 {[%clk 0:00:15.9]} 88... Ra6 {[%clk 0:05:08.6]}
89. Rg5+ {[%clk 0:00:15.3]} 89... Kh6 {[%clk 0:05:09.1]} 90. Rh5+ {[%clk
0:00:15.6]} 1/2-1/2

[Event "GrandPrix_30.05"]
[Site "Chess.com"]
[Date "2020.05.30"]
[Round "7"]
[White "LazovT"]
[Black "A_N_D-R_E_I"]
[Result "0-1"]
[WhiteElo "2209"]
[BlackElo "2140"]
[TimeControl "600+2"]
[EndTime "11:27:13 PDT"]
[Termination "A_N_D-R_E_I won by resignation"]

1. e4 {[%clk 0:09:43.5]} 1... c5 {[%clk 0:10:00.5]} 2. Be2 {[%clk 0:09:40.6]}
2... Nc6 {[%clk 0:09:57.7]} 3. d3 {[%clk 0:09:27.1]} 3... e6 {[%clk 0:09:54.5]}
4. f4 {[%clk 0:09:29]} 4... d5 {[%clk 0:09:52.3]} 5. Nf3 {[%clk 0:09:30.7]} 5...
b6 {[%clk 0:09:18]} 6. O-O {[%clk 0:09:28.4]} 6... Bb7 {[%clk 0:09:19]} 7. c3
{[%clk 0:09:25.9]} 7... d4 {[%clk 0:08:42.9]} 8. Na3 {[%clk 0:08:56.5]} 8... Nf6
{[%clk 0:08:12.6]} 9. Qe1 {[%clk 0:08:38.7]} 9... Be7 {[%clk 0:07:58.8]} 10. Nc2
{[%clk 0:08:25.1]} 10... O-O {[%clk 0:07:47.2]} 11. Kh1 {[%clk 0:07:30.1]} 11...
Rc8 {[%clk 0:07:46.7]} 12. c4 {[%clk 0:07:23.2]} 12... a6 {[%clk 0:07:21.8]} 13.
Rg1 {[%clk 0:07:16.5]} 13... b5 {[%clk 0:07:20.1]} 14. b3 {[%clk 0:07:17.8]}
14... Ne8 {[%clk 0:07:02]} 15. g4 {[%clk 0:07:18.1]} 15... f5 {[%clk 0:06:48.7]}
16. gxf5 {[%clk 0:07:02.2]} 16... exf5 {[%clk 0:06:49]} 17. Qg3 {[%clk
0:07:01.5]} 17... g6 {[%clk 0:06:50]} 18. e5 {[%clk 0:06:46.2]} 18... Ng7 {[%clk
0:06:44.1]} 19. Bd2 {[%clk 0:06:31.3]} 19... Qb6 {[%clk 0:06:06.9]} 20. Rab1
{[%clk 0:06:00.4]} 20... b4 {[%clk 0:05:53.9]} 21. Rg2 {[%clk 0:05:58]} 21...
Nd8 {[%clk 0:05:53.6]} 22. h4 {[%clk 0:05:57.7]} 22... Nde6 {[%clk 0:05:52.1]}
23. Kh2 {[%clk 0:05:51.9]} 23... Nh5 {[%clk 0:05:49.3]} 24. Qf2 {[%clk
0:05:49.6]} 24... Nhxf4 {[%clk 0:05:38]} 25. Rgg1 {[%clk 0:05:37.8]} 25... Nxe2
{[%clk 0:04:38.4]} 26. Qxe2 {[%clk 0:05:39.7]} 26... Bxf3 {[%clk 0:04:27.9]} 27.
Qxf3 {[%clk 0:05:41.6]} 27... Bxh4 {[%clk 0:04:29.1]} 28. Bh6 {[%clk 0:05:40.1]}
28... Rf7 {[%clk 0:04:18]} 29. Qh5 {[%clk 0:05:36.4]} 29... Bd8 {[%clk 0:03:22]}
30. Qh3 {[%clk 0:05:15.3]} 30... Bc7 {[%clk 0:02:59]} 31. Rbe1 {[%clk
0:05:15.8]} 31... Re8 {[%clk 0:02:57.2]} 32. Re2 {[%clk 0:05:14.4]} 32... Ng7
{[%clk 0:02:56.3]} 33. Rge1 {[%clk 0:05:04.8]} 33... Qb8 {[%clk 0:02:55.7]} 34.
Qf3 {[%clk 0:04:59.1]} 34... Rxe5 {[%clk 0:02:14.1]} 35. Rxe5 {[%clk 0:04:48.2]}
35... Bxe5+ {[%clk 0:02:16]} 36. Kg1 {[%clk 0:04:49.7]} 36... Bf6 {[%clk
0:01:37.6]} 37. Kg2 {[%clk 0:04:16.7]} 37... Qb7 {[%clk 0:01:37.4]} 38. Bxg7
{[%clk 0:04:04]} 38... Kxg7 {[%clk 0:01:24.4]} 39. Re6 {[%clk 0:04:04.3]} 39...
Qxf3+ {[%clk 0:01:23.5]} 40. Kxf3 {[%clk 0:04:06.2]} 40... a5 {[%clk 0:00:59.9]}
41. Rc6 {[%clk 0:03:44.6]} 41... Be7 {[%clk 0:00:59.5]} 42. a4 {[%clk
0:03:21.4]} 42... h5 {[%clk 0:00:44.9]} 43. Ne1 {[%clk 0:03:22.1]} 43... g5
{[%clk 0:00:29.3]} 44. Re6 {[%clk 0:03:12.9]} 44... h4 {[%clk 0:00:27.4]} 45.
Kg2 {[%clk 0:03:09.9]} 45... g4 {[%clk 0:00:22.4]} 46. Ra6 {[%clk 0:03:06.3]}
46... Bd8 {[%clk 0:00:20.5]} 47. Rc6 {[%clk 0:03:07.6]} 47... Re7 {[%clk
0:00:19.8]} 48. Kf1 {[%clk 0:03:06.8]} 48... Re5 {[%clk 0:00:19.5]} 49. Ng2
{[%clk 0:02:54.4]} 49... Bg5 {[%clk 0:00:18.8]} 50. Rc7+ {[%clk 0:02:50.9]}
50... Kg6 {[%clk 0:00:18.7]} 51. Rc6+ {[%clk 0:02:52.2]} 51... Kh5 {[%clk
0:00:19.6]} 52. Rc8 {[%clk 0:02:51.5]} 52... h3 {[%clk 0:00:19.7]} 53. Rh8+
{[%clk 0:02:52.6]} 53... Kg6 {[%clk 0:00:20.8]} 54. Nh4+ {[%clk 0:02:44.4]}
54... Bxh4 {[%clk 0:00:21.6]} 55. Rxh4 {[%clk 0:02:46.3]} 55... Kg5 {[%clk
0:00:22.2]} 56. Rh8 {[%clk 0:02:47.1]} 56... Kf4 {[%clk 0:00:23]} 57. Kf2 {[%clk
0:02:48.1]} 57... g3+ {[%clk 0:00:23.4]} 58. Kf1 {[%clk 0:02:49.6]} 58... Kg4
{[%clk 0:00:22]} 59. Rg8+ {[%clk 0:02:50.1]} 59... Kf3 {[%clk 0:00:22.7]} 0-1